{"text_format":"3","workbook":"xlsx","n_sheets":1,"sheets":["Årlig timeliste"],"not_rendered":{"defined_names":2},"read":"whole","date_system":"1900"}

{"sheet":"Årlig timeliste","index":0,"n_rows":140,"n_cols":12,"rows_kept":140,"merged":[[0,1,1,11],[2,6,2,7],[2,8,2,9],[5,1,5,11],[39,1,39,11],[73,1,73,11],[107,1,107,11]]}
[null,"Timeliste for ansatte"]
[]
[null,"Ansattes navn:",null,"E-post:",null,null,"Totalt hittil i år:"]
[null,"Leder:",null,"Telefon:",null,null,"Vanlige timer:",{"$f":"SUM(C16,C27,C38,C50,C61,C72,C84,C95,C106,C118,C129,C140)","v":0},"Overtidstimer:",{"$f":"SUM(F16,F27,F38,F50,F61,F72,F84,F95,F106,F118,F129,F140)","v":0},"Totalt:",{"$f":"SUM(H4:J4)","v":0}]
[]
[null,"Januar, februar, mars      Timeliste for ansatte: Daglig, ukentlig, månedlig, årlig"]
[null,"Januar","Uke 1","Overtid","Uke 2","Overtid ","Uke 3","Overtid  ","Uke 4","Overtid   ","Uke 5","Overtid    "]
[null,"Mandag"]
[null,"Tirsdag"]
[null,"Onsdag"]
[null,"Torsdag"]
[null,"Fredag"]
[null,"Lørdag"]
[null,"Søndag"]
[null,"Timer totalt per uke",{"$f":"SUBTOTAL(109,Januar[Uke 1])","v":0},{"$f":"SUBTOTAL(109,Januar[Overtid])","v":0},{"$f":"SUBTOTAL(109,Januar[Uke 2])","v":0},{"$f":"SUBTOTAL(109,Januar[[Overtid ]])","v":0},{"$f":"SUBTOTAL(109,Januar[Uke 3])","v":0},{"$f":"SUBTOTAL(109,Januar[[Overtid  ]])","v":0},{"$f":"SUBTOTAL(109,Januar[Uke 4])","v":0},{"$f":"SUBTOTAL(109,Januar[[Overtid   ]])","v":0},{"$f":"SUBTOTAL(109,Januar[Uke 5])","v":0},{"$f":"SUBTOTAL(109,Januar[[Overtid    ]])","v":0}]
[null,"Jan. totalt: Vanlige timer",{"$f":"SUM(Januar[[#Totals],[Uke 1]],Januar[[#Totals],[Uke 2]],Januar[[#Totals],[Uke 3]],Januar[[#Totals],[Uke 4]],Januar[[#Totals],[Uke 5]])","v":0},"Jan. totalt: Overtid",null,{"$f":"SUM(Januar[[#Totals],[Overtid]],Januar[[#Totals],[Overtid ]],Januar[[#Totals],[Overtid  ]],Januar[[#Totals],[Overtid   ]],Januar[[#Totals],[Overtid    ]])","v":0}]
[]
[null,"Februar","Uke 1","Overtid","Uke 2","Overtid ","Uke 3","Overtid  ","Uke 4","Overtid   ","Uke 5","Overtid    "]
[null,"Mandag"]
[null,"Tirsdag"]
[null,"Onsdag"]
[null,"Torsdag"]
[null,"Fredag"]
[null,"Lørdag"]
[null,"Søndag"]
[null,"Timer totalt per uke",{"$f":"SUBTOTAL(109,Februar[Uke 1])","v":0},{"$f":"SUBTOTAL(109,Februar[Overtid])","v":0},{"$f":"SUBTOTAL(109,Februar[Uke 2])","v":0},{"$f":"SUBTOTAL(109,Februar[[Overtid ]])","v":0},{"$f":"SUBTOTAL(109,Februar[Uke 3])","v":0},{"$f":"SUBTOTAL(109,Februar[[Overtid  ]])","v":0},{"$f":"SUBTOTAL(109,Februar[Uke 4])","v":0},{"$f":"SUBTOTAL(109,Februar[[Overtid   ]])","v":0},{"$f":"SUBTOTAL(109,Februar[Uke 5])","v":0},{"$f":"SUBTOTAL(109,Februar[[Overtid    ]])","v":0}]
[null,"Feb. totalt: Vanlige timer",{"$f":"SUM(Februar[[#Totals],[Uke 1]],Februar[[#Totals],[Uke 2]],Februar[[#Totals],[Uke 3]],Februar[[#Totals],[Uke 4]],Februar[[#Totals],[Uke 5]])","v":0},"Feb. totalt: Overtid",null,{"$f":"SUM(Februar[[#Totals],[Overtid]],Februar[[#Totals],[Overtid ]],Februar[[#Totals],[Overtid  ]],Februar[[#Totals],[Overtid   ]],Februar[[#Totals],[Overtid    ]])","v":0}]
[]
[null,"Mars","Uke 1","Overtid","Uke 2","Overtid ","Uke 3","Overtid  ","Uke 4","Overtid   ","Uke 5","Overtid    "]
[null,"Mandag"]
[null,"Tirsdag"]
[null,"Onsdag"]
[null,"Torsdag"]
[null,"Fredag"]
[null,"Lørdag"]
[null,"Søndag"]
[null,"Timer totalt per uke",{"$f":"SUBTOTAL(109,Mars[Uke 1])","v":0},{"$f":"SUBTOTAL(109,Mars[Overtid])","v":0},{"$f":"SUBTOTAL(109,Mars[Uke 2])","v":0},{"$f":"SUBTOTAL(109,Mars[[Overtid ]])","v":0},{"$f":"SUBTOTAL(109,Mars[Uke 3])","v":0},{"$f":"SUBTOTAL(109,Mars[[Overtid  ]])","v":0},{"$f":"SUBTOTAL(109,Mars[Uke 4])","v":0},{"$f":"SUBTOTAL(109,Mars[[Overtid   ]])","v":0},{"$f":"SUBTOTAL(109,Mars[Uke 5])","v":0},{"$f":"SUBTOTAL(109,Mars[[Overtid    ]])","v":0}]
[null,"Mars totalt: Vanlige timer",{"$f":"SUM(Mars[[#Totals],[Uke 1]],Mars[[#Totals],[Uke 2]],Mars[[#Totals],[Uke 3]],Mars[[#Totals],[Uke 4]],Mars[[#Totals],[Uke 5]])","v":0},"Mars totalt: Overtid",null,{"$f":"SUM(Mars[[#Totals],[Overtid]],Mars[[#Totals],[Overtid ]],Mars[[#Totals],[Overtid  ]],Mars[[#Totals],[Overtid   ]],Mars[[#Totals],[Overtid    ]])","v":0}]
[]
[null,"April, mai, juni      Timeliste for ansatte: Daglig, ukentlig, månedlig, årlig"]
[null,"April","Uke 1","Overtid","Uke 2","Overtid ","Uke 3","Overtid  ","Uke 4","Overtid   ","Uke 5","Overtid    "]
[null,"Mandag"]
[null,"Tirsdag"]
[null,"Onsdag"]
[null,"Torsdag"]
[null,"Fredag"]
[null,"Lørdag"]
[null,"Søndag"]
[null,"Timer totalt per uke",{"$f":"SUBTOTAL(109,April[Uke 1])","v":0},{"$f":"SUBTOTAL(109,April[Overtid])","v":0},{"$f":"SUBTOTAL(109,April[Uke 2])","v":0},{"$f":"SUBTOTAL(109,April[[Overtid ]])","v":0},{"$f":"SUBTOTAL(109,April[Uke 3])","v":0},{"$f":"SUBTOTAL(109,April[[Overtid  ]])","v":0},{"$f":"SUBTOTAL(109,April[Uke 4])","v":0},{"$f":"SUBTOTAL(109,April[[Overtid   ]])","v":0},{"$f":"SUBTOTAL(109,April[Uke 5])","v":0},{"$f":"SUBTOTAL(109,April[[Overtid    ]])","v":0}]
[null,"April totalt: Vanlige timer",{"$f":"SUM(April[[#Totals],[Uke 1]],April[[#Totals],[Uke 2]],April[[#Totals],[Uke 3]],April[[#Totals],[Uke 4]],April[[#Totals],[Uke 5]])","v":0},"April totalt: Overtid",null,{"$f":"SUM(April[[#Totals],[Overtid]],April[[#Totals],[Overtid ]],April[[#Totals],[Overtid  ]],April[[#Totals],[Overtid   ]],April[[#Totals],[Overtid    ]])","v":0}]
[]
[null,"Mai","Uke 1","Overtid","Uke 2","Overtid ","Uke 3","Overtid  ","Uke 4","Overtid   ","Uke 5","Overtid    "]
[null,"Mandag"]
[null,"Tirsdag"]
[null,"Onsdag"]
[null,"Torsdag"]
[null,"Fredag"]
[null,"Lørdag"]
[null,"Søndag"]
[null,"Timer totalt per uke",{"$f":"SUBTOTAL(109,Mai[Uke 1])","v":0},{"$f":"SUBTOTAL(109,Mai[Overtid])","v":0},{"$f":"SUBTOTAL(109,Mai[Uke 2])","v":0},{"$f":"SUBTOTAL(109,Mai[[Overtid ]])","v":0},{"$f":"SUBTOTAL(109,Mai[Uke 3])","v":0},{"$f":"SUBTOTAL(109,Mai[[Overtid  ]])","v":0},{"$f":"SUBTOTAL(109,Mai[Uke 4])","v":0},{"$f":"SUBTOTAL(109,Mai[[Overtid   ]])","v":0},{"$f":"SUBTOTAL(109,Mai[Uke 5])","v":0},{"$f":"SUBTOTAL(109,Mai[[Overtid    ]])","v":0}]
[null,"Mai totalt: Vanlige timer",{"$f":"SUM(Mai[[#Totals],[Uke 1]],Mai[[#Totals],[Uke 2]],Mai[[#Totals],[Uke 3]],Mai[[#Totals],[Uke 4]],Mai[[#Totals],[Uke 5]])","v":0},"Mai totalt: Overtid",null,{"$f":"SUM(Mai[[#Totals],[Overtid]],Mai[[#Totals],[Overtid ]],Mai[[#Totals],[Overtid  ]],Mai[[#Totals],[Overtid   ]],Mai[[#Totals],[Overtid    ]])","v":0}]
[]
[null,"Juni","Uke 1","Overtid","Uke 2","Overtid ","Uke 3","Overtid  ","Uke 4","Overtid   ","Uke 5","Overtid    "]
[null,"Mandag"]
[null,"Tirsdag"]
[null,"Onsdag"]
[null,"Torsdag"]
[null,"Fredag"]
[null,"Lørdag"]
[null,"Søndag"]
[null,"Timer totalt per uke",{"$f":"SUBTOTAL(109,Juni[Uke 1])","v":0},{"$f":"SUBTOTAL(109,Juni[Overtid])","v":0},{"$f":"SUBTOTAL(109,Juni[Uke 2])","v":0},{"$f":"SUBTOTAL(109,Juni[[Overtid ]])","v":0},{"$f":"SUBTOTAL(109,Juni[Uke 3])","v":0},{"$f":"SUBTOTAL(109,Juni[[Overtid  ]])","v":0},{"$f":"SUBTOTAL(109,Juni[Uke 4])","v":0},{"$f":"SUBTOTAL(109,Juni[[Overtid   ]])","v":0},{"$f":"SUBTOTAL(109,Juni[Uke 5])","v":0},{"$f":"SUBTOTAL(109,Juni[[Overtid    ]])","v":0}]
[null,"Juni totalt: Vanlige timer",{"$f":"SUM(Juni[[#Totals],[Uke 1]],Juni[[#Totals],[Uke 2]],Juni[[#Totals],[Uke 3]],Juni[[#Totals],[Uke 4]],Juni[[#Totals],[Uke 5]])","v":0},"Juni totalt: Overtid",null,{"$f":"SUM(Juni[[#Totals],[Overtid]],Juni[[#Totals],[Overtid ]],Juni[[#Totals],[Overtid  ]],Juni[[#Totals],[Overtid   ]],Juni[[#Totals],[Overtid    ]])","v":0}]
[]
[null,"Juli, august, september     Timeliste for ansatte: Daglig, ukentlig, månedlig, årlig"]
[null,"Juli","Uke 1","Overtid","Uke 2","Overtid ","Uke 3","Overtid  ","Uke 4","Overtid   ","Uke 5","Overtid    "]
[null,"Mandag"]
[null,"Tirsdag"]
[null,"Onsdag"]
[null,"Torsdag"]
[null,"Fredag"]
[null,"Lørdag"]
[null,"Søndag"]
[null,"Timer totalt per uke",{"$f":"SUBTOTAL(109,Juli[Uke 1])","v":0},{"$f":"SUBTOTAL(109,Juli[Overtid])","v":0},{"$f":"SUBTOTAL(109,Juli[Uke 2])","v":0},{"$f":"SUBTOTAL(109,Juli[[Overtid ]])","v":0},{"$f":"SUBTOTAL(109,Juli[Uke 3])","v":0},{"$f":"SUBTOTAL(109,Juli[[Overtid  ]])","v":0},{"$f":"SUBTOTAL(109,Juli[Uke 4])","v":0},{"$f":"SUBTOTAL(109,Juli[[Overtid   ]])","v":0},{"$f":"SUBTOTAL(109,Juli[Uke 5])","v":0},{"$f":"SUBTOTAL(109,Juli[[Overtid    ]])","v":0}]
[null,"Juli totalt: Vanlige timer",{"$f":"SUM(Juli[[#Totals],[Uke 1]],Juli[[#Totals],[Uke 2]],Juli[[#Totals],[Uke 3]],Juli[[#Totals],[Uke 4]],Juli[[#Totals],[Uke 5]])","v":0},"Juli totalt: Overtid",null,{"$f":"SUM(Juli[[#Totals],[Overtid]],Juli[[#Totals],[Overtid ]],Juli[[#Totals],[Overtid  ]],Juli[[#Totals],[Overtid   ]],Juli[[#Totals],[Overtid    ]])","v":0}]
[]
[null,"August","Uke 1","Overtid","Uke 2","Overtid ","Uke 3","Overtid  ","Uke 4","Overtid   ","Uke 5","Overtid    "]
[null,"Mandag"]
[null,"Tirsdag"]
[null,"Onsdag"]
[null,"Torsdag"]
[null,"Fredag"]
[null,"Lørdag"]
[null,"Søndag"]
[null,"Timer totalt per uke",{"$f":"SUBTOTAL(109,August[Uke 1])","v":0},{"$f":"SUBTOTAL(109,August[Overtid])","v":0},{"$f":"SUBTOTAL(109,August[Uke 2])","v":0},{"$f":"SUBTOTAL(109,August[[Overtid ]])","v":0},{"$f":"SUBTOTAL(109,August[Uke 3])","v":0},{"$f":"SUBTOTAL(109,August[[Overtid  ]])","v":0},{"$f":"SUBTOTAL(109,August[Uke 4])","v":0},{"$f":"SUBTOTAL(109,August[[Overtid   ]])","v":0},{"$f":"SUBTOTAL(109,August[Uke 5])","v":0},{"$f":"SUBTOTAL(109,August[[Overtid    ]])","v":0}]
[null,"Aug. totalt: Vanlige timer",{"$f":"SUM(August[[#Totals],[Uke 1]],August[[#Totals],[Uke 2]],August[[#Totals],[Uke 3]],August[[#Totals],[Uke 4]],August[[#Totals],[Uke 5]])","v":0},"Aug. totalt: Overtid",null,{"$f":"SUM(August[[#Totals],[Overtid]],August[[#Totals],[Overtid ]],August[[#Totals],[Overtid  ]],August[[#Totals],[Overtid   ]],August[[#Totals],[Overtid    ]])","v":0}]
[]
[null,"September","Uke 1","Overtid","Uke 2","Overtid ","Uke 3","Overtid  ","Uke 4","Overtid   ","Uke 5","Overtid    "]
[null,"Mandag"]
[null,"Tirsdag"]
[null,"Onsdag"]
[null,"Torsdag"]
[null,"Fredag"]
[null,"Lørdag"]
[null,"Søndag"]
[null,"Timer totalt per uke",{"$f":"SUBTOTAL(109,September[Uke 1])","v":0},{"$f":"SUBTOTAL(109,September[Overtid])","v":0},{"$f":"SUBTOTAL(109,September[Uke 2])","v":0},{"$f":"SUBTOTAL(109,September[[Overtid ]])","v":0},{"$f":"SUBTOTAL(109,September[Uke 3])","v":0},{"$f":"SUBTOTAL(109,September[[Overtid  ]])","v":0},{"$f":"SUBTOTAL(109,September[Uke 4])","v":0},{"$f":"SUBTOTAL(109,September[[Overtid   ]])","v":0},{"$f":"SUBTOTAL(109,September[Uke 5])","v":0},{"$f":"SUBTOTAL(109,September[[Overtid    ]])","v":0}]
[null,"Sep. totalt: Vanlige timer",{"$f":"SUM(September[[#Totals],[Uke 1]],September[[#Totals],[Uke 2]],September[[#Totals],[Uke 3]],September[[#Totals],[Uke 4]],September[[#Totals],[Uke 5]])","v":0},"Sep. totalt: Overtid",null,{"$f":"SUM(September[[#Totals],[Overtid]],September[[#Totals],[Overtid ]],September[[#Totals],[Overtid  ]],September[[#Totals],[Overtid   ]],September[[#Totals],[Overtid    ]])","v":0}]
[]
[null,"Oktober, november, desember     Timeliste for ansatte: Daglig, ukentlig, månedlig, årlig"]
[null,"Oktober","Uke 1","Overtid","Uke 2","Overtid ","Uke 3","Overtid  ","Uke 4","Overtid   ","Uke 5","Overtid    "]
[null,"Mandag"]
[null,"Tirsdag"]
[null,"Onsdag"]
[null,"Torsdag"]
[null,"Fredag"]
[null,"Lørdag"]
[null,"Søndag"]
[null,"Timer totalt per uke",{"$f":"SUBTOTAL(109,Oktober[Uke 1])","v":0},{"$f":"SUBTOTAL(109,Oktober[Overtid])","v":0},{"$f":"SUBTOTAL(109,Oktober[Uke 2])","v":0},{"$f":"SUBTOTAL(109,Oktober[[Overtid ]])","v":0},{"$f":"SUBTOTAL(109,Oktober[Uke 3])","v":0},{"$f":"SUBTOTAL(109,Oktober[[Overtid  ]])","v":0},{"$f":"SUBTOTAL(109,Oktober[Uke 4])","v":0},{"$f":"SUBTOTAL(109,Oktober[[Overtid   ]])","v":0},{"$f":"SUBTOTAL(109,Oktober[Uke 5])","v":0},{"$f":"SUBTOTAL(109,Oktober[[Overtid    ]])","v":0}]
[null,"Okt. totalt: Vanlige timer",{"$f":"SUM(Oktober[[#Totals],[Uke 1]],Oktober[[#Totals],[Uke 2]],Oktober[[#Totals],[Uke 3]],Oktober[[#Totals],[Uke 4]],Oktober[[#Totals],[Uke 5]])","v":0},"Okt. totalt: Overtid",null,{"$f":"SUM(Oktober[[#Totals],[Overtid]],Oktober[[#Totals],[Overtid ]],Oktober[[#Totals],[Overtid  ]],Oktober[[#Totals],[Overtid   ]],Oktober[[#Totals],[Overtid    ]])","v":0}]
[]
[null,"November","Uke 1","Overtid","Uke 2","Overtid ","Uke 3","Overtid  ","Uke 4","Overtid   ","Uke 5","Overtid    "]
[null,"Mandag"]
[null,"Tirsdag"]
[null,"Onsdag"]
[null,"Torsdag"]
[null,"Fredag"]
[null,"Lørdag"]
[null,"Søndag"]
[null,"Timer totalt per uke",{"$f":"SUBTOTAL(109,November[Uke 1])","v":0},{"$f":"SUBTOTAL(109,November[Overtid])","v":0},{"$f":"SUBTOTAL(109,November[Uke 2])","v":0},{"$f":"SUBTOTAL(109,November[[Overtid ]])","v":0},{"$f":"SUBTOTAL(109,November[Uke 3])","v":0},{"$f":"SUBTOTAL(109,November[[Overtid  ]])","v":0},{"$f":"SUBTOTAL(109,November[Uke 4])","v":0},{"$f":"SUBTOTAL(109,November[[Overtid   ]])","v":0},{"$f":"SUBTOTAL(109,November[Uke 5])","v":0},{"$f":"SUBTOTAL(109,November[[Overtid    ]])","v":0}]
[null,"Nov. totalt: Vanlige timer",{"$f":"SUM(November[[#Totals],[Uke 1]],November[[#Totals],[Uke 2]],November[[#Totals],[Uke 3]],November[[#Totals],[Uke 4]],November[[#Totals],[Uke 5]])","v":0},"Nov. totalt: Overtid",null,{"$f":"SUM(November[[#Totals],[Overtid]],November[[#Totals],[Overtid ]],November[[#Totals],[Overtid  ]],November[[#Totals],[Overtid   ]],November[[#Totals],[Overtid    ]])","v":0}]
[]
[null,"Desember","Uke 1","Overtid","Uke 2","Overtid ","Uke 3","Overtid  ","Uke 4","Overtid   ","Uke 5","Overtid    "]
[null,"Mandag"]
[null,"Tirsdag"]
[null,"Onsdag"]
[null,"Torsdag"]
[null,"Fredag"]
[null,"Lørdag"]
[null,"Søndag"]
[null,"Timer totalt per uke",{"$f":"SUBTOTAL(109,Desember[Uke 1])","v":0},{"$f":"SUBTOTAL(109,Desember[Overtid])","v":0},{"$f":"SUBTOTAL(105,Desember[Uke 2])","v":0},{"$f":"SUBTOTAL(109,Desember[[Overtid ]])","v":0},{"$f":"SUBTOTAL(109,Desember[Uke 3])","v":0},{"$f":"SUBTOTAL(109,Desember[[Overtid  ]])","v":0},{"$f":"SUBTOTAL(109,Desember[Uke 4])","v":0},{"$f":"SUBTOTAL(109,Desember[[Overtid   ]])","v":0},{"$f":"SUBTOTAL(109,Desember[Uke 5])","v":0},{"$f":"SUBTOTAL(109,Desember[[Overtid    ]])","v":0}]
[null,"Des. totalt: Vanlige timer",{"$f":"SUM(Desember[[#Totals],[Uke 1]],Desember[[#Totals],[Uke 2]],Desember[[#Totals],[Uke 3]],Desember[[#Totals],[Uke 4]],Desember[[#Totals],[Uke 5]])","v":0},"Des. totalt: Overtid",null,{"$f":"SUM(Desember[[#Totals],[Overtid]],Desember[[#Totals],[Overtid ]],Desember[[#Totals],[Overtid  ]],Desember[[#Totals],[Overtid   ]],Desember[[#Totals],[Overtid    ]])","v":0}]